Cogmind - Beta 13 @@@ ROGUE MODE // 2024.07.31 @ 01:04:29 Player: GFYguy Result: Self-destructed Performance ------------- Evolutions (1) 500 Regions Visited (2) 400 Robots Destroyed (17) 85 Value Destroyed (479) 479 Prototype IDs (3) 60 Alien Tech Used (0) 0 Bonus (0) 0 TOTAL SCORE: 1524 Bonus ------- None Cogmind --------- Core Integrity 343/400 Matter 273/300 Energy 50/250 System Corruption 0% Temperature Cool (0) Movement Walking (120) Location -9/Materials Parts ------- > --- POWER (1) -------- Ion Engine > --- PROPULSION (4) --- Aluminum Leg Aluminum Leg Aluminum Leg Aluminum Leg > --- UTILITY (2) ------ Cooling System Large Storage Unit > --- WEAPON (2) ------- Particle Gun > --- INVENTORY (15) --- Heavy Ion Engine Aluminum Leg Aluminum Leg Aluminum Leg Wheel Heat Sink Heat Sink Heat Sink Improved Heat Sink Small Storage Unit Light Armor Plating Hardened Light Armor Plating Field Recycling Unit (0) Spread Laser Peak State ------------ > --- POWER ------------ Ion Engine > --- PROPULSION ------- Aluminum Leg Aluminum Leg Aluminum Leg Aluminum Leg > --- UTILITY ---------- Large Storage Unit Hardened Light Armor Plating > --- WEAPON ----------- Particle Gun Assault Rifle > --- INVENTORY -------- Ion Engine Heavy Ion Engine Aluminum Leg Aluminum Leg Aluminum Leg Wheel Heat Sink Heat Sink Heat Sink Improved Heat Sink Cooling System Small Storage Unit Light Armor Plating Field Recycling Unit Spread Laser [Rating: 13] Favorites ----------- Power Ion Engine Engine Ion Engine Propulsion Aluminum Leg Leg Aluminum Leg Utility Large Storage Unit Device Heat Sink Storage Large Storage Unit Protection Hardened Light Armor Plating Weapon Assault Rifle Energy Gun Small Laser Ballistic Gun Assault Rifle Build | -11 -10 -9 ------- Run | Yrd Mat Mat Slots Evolved 2 | . . 2 Power . | . . . Propulsion 2 | . . 2 Utility . | . . . Weapon . | . . . Parts Attached 23 | 3 6 14 Power 5 | . 1 4 Engine 5 | . 1 4 Core . | . . . Reactor . | . . . Propulsion 8 | 2 1 5 Treads . | . . . Leg 8 | 2 1 5 Wheel . | . . . Hover . | . . . Flight . | . . . Utility 6 | 1 1 4 Device 3 | . 1 2 Storage 2 | 1 . 1 Processor . | . . . Hackware . | . . . Protection 1 | . . 1 Artifact . | . . . Weapon 4 | . 3 1 Energy Gun 2 | . 1 1 Energy Cannon . | . . . Ballistic Gun 2 | . 2 . Ballistic Cannon . | . . . Launcher . | . . . Special Weapon . | . . . Impact Weapon . | . . . Slashing Weapon . | . . . Piercing Weapon . | . . . Special Melee Weapon . | . . . Unidentified Prototypes 1 | . . 1 Parts Lost 2 | . . 2 Power 1 | . . 1 Propulsion . | . . . Utility . | . . . Weapon 1 | . . 1 Highest Loss Streak 2 | . . 2 To Critical Strikes . | . . . Average Slot Usage (%) 95 | . 88 98 Engine 11 | . 13 10 Leg 38 | . 28 44 Device 8 | . 4 10 Storage 11 | . 14 11 Energy Gun 8 | . 4 11 Ballistic Gun 14 | . 22 10 Naked Turns . | . . . Heaviest Build 35 | 5 14 35 Greatest Support 40 | 20 20 40 Greatest Overweight (x) . | . . . Average Overweight (x) . | . . . Largest Inventory Capacity 15 | 8 8 15 Average Capacity 12 | 7 8 14 Most Carried 15 | 8 8 15 Average Carried 9 | 5 5 11 Final Capacity 15 | 8 8 15 Final Carried 14 | 6 8 14 Class Distribution -------------------- 63% | Scavenger-Mutant 36% | Mutant Dominant Class ---------------- Mutant | -10/Materials Scavenger-Mutant | -9/Materials Resources | -11 -10 -9 ----------- Run | Yrd Mat Mat Matter Collected 609 | 230 140 239 Remotely . | . . . Salvage Created 653 | . 216 437 Parts 24 | . 8 16 Haulers Intercepted . | . . . Recyclers Shooed 1 | . . 1 Parts Field Recycled . | . . . Retrieved Matter . | . . . Parts Self-Destructed . | . . . Prevented . | . . . Kills | -11 -10 -9 ------- Run | Yrd Mat Mat Combat Hostiles Destroyed 14 | . 5 9 Guns 13 | . 5 8 Classes Destroyed 5 | . 1 4 Recycler 1 | . . 1 Watcher 2 | . . 2 Swarmer 3 | . . 3 Grunt 10 | . 5 5 Sentry 1 | . . 1 Best Kill Streak 6 | . 3 6 Combat Bots Only 5 | . 3 5 Max Kills in Single Turn 1 | . 1 1 Gunslinging . | . . . Exploded . | . . . Melee . | . . . Uniques/NPCs Destroyed . | . . . Combat | -11 -10 -9 -------- Run | Yrd Mat Mat Hostile Shots Fired 95 | . 38 57 Missed 24 | . 9 15 Damage Taken 802 | . 318 484 Core 114 | . 57 57 Absorbed by Shields . | . . . Core Remaining (%) 88 | 100 77 . Volleys Fired 70 | . 26 44 Largest 2 | . 2 2 Hottest 85 | . 60 85 Shots Fired 137 | . 52 85 Gun 137 | . 52 85 Cannon . | . . . Launcher . | . . . Special . | . . . Kinetic 80 | . 38 42 Thermal 57 | . 14 43 Explosive . | . . . Electromagnetic . | . . . Robot Hit Streak 13 | . 12 13 Robot Miss Streak 7 | . 4 7 Penetration Max . | . . . Secondary Targets 1 | . . 1 Max Gunslinging Chain 1 | . . 1 Shots Hit Robots 84 | . 38 46 Core Hits 28 | . 8 20 Critical Kills . | . . . Critical Parts Destroyed 2 | . . 2 Critical Strikes 4 | . . 4 Burn 2 | . . 2 Destroy 2 | . . 2 Melee Attacks . | . . . Impact . | . . . Slashing . | . . . Piercing . | . . . Sneak Attacks . | . . . Combat Hostiles . | . . . Follow-up Attacks . | . . . Damage Inflicted 1074 | . 446 628 Guns 1074 | . 446 628 Cannons . | . . . Explosions . | . . . Melee . | . . . Ramming . | . . . Kinetic 654 | . 346 308 Thermal 420 | . 100 320 Explosive . | . . . Electromagnetic . | . . . Impact . | . . . Slashing . | . . . Piercing . | . . . Highest Corruption . | . . . Average Corruption . | . . . Corruption Purged . | . . . Corruption Blocked . | . . . Overload Shots . | . . . Overflow Damage . | . . . Projectiles . | . . . Explosions . | . . . Melee . | . . . Knockbacks . | . . . Impact . | . . . Kinetic . | . . . Secondary . | . . . Self-Inflicted Damage . | . . . Shots . | . . . Rammed . | . . . Targets Rammed . | . . . Kicked . | . . . Crushed . | . . . Highest Temperature 300 | . 12 300 Average Temperature 124 | . 8 137 Received Heat Transfer 372 | . 174 198 Siege Activations . | . . . Robots Corrupted . | . . . Combat Hostiles . | . . . Parts Fried . | . . . Impact Corruptions . | . . . Robots Melted 1 | . . 1 Combat Hostiles 1 | . . 1 Parts Melted 8 | . 1 7 Heat Transferred 1117 | . 225 892 Parts Sabotaged . | . . . Parts Stolen . | . . . Parts Stripped . | . . . Power Chain Reactions . | . . . Alert | -11 -10 -9 ------- Run | Yrd Mat Mat Peak Influence 210 | . 144 210 Initial 60 | . . 60 Average 87 | . 52 115 Maximum Alert Level 1 | . . 1 Low Security (%) 85 | 100 100 76 Level 1 14 | . . 23 Level 2 . | . . . Level 3 . | . . . Level 4 . | . . . Level 5 . | . . . High Security . | . . . Max Security . | . . . Squads Dispatched 3 | . 2 1 Investigation 1 | . 1 . Extermination . | . . . Reinforcement 2 | . 1 1 Assault . | . . . Garrison . | . . . Intercept . | . . . Searches Triggered . | . . . Construction Impeded . | . . . Haulers Reinforced . | . . . Active Scanning Responses . | . . . Cargo Convoy Interrupts . | . . . Stealth | -11 -10 -9 --------- Run | Yrd Mat Mat Distress Signals 2 | . 1 1 Communications Jammed . | . . . Distress Signals . | . . . Times Spotted 23 | . 8 15 Peak Tracking Total 5 | . 5 5 Tactical Retreats . | . . . Traps | -11 -10 -9 ------- Run | Yrd Mat Mat Traps Triggered . | . . . Indirectly . | . . . Trap Hack Attempts . | . . . Triggered . | . . . Disarmed . | . . . Reprogrammed . | . . . Reused . | . . . Traps Extracted . | . . . Installed . | . . . Triggered . | . . . Machines | -11 -10 -9 ---------- Run | Yrd Mat Mat Machines Disabled . | . . . Max in Single Turn . | . . . Machines Repaired . | . . . Machines Dismantled . | . . . Machines Sabotaged . | . . . Overloaded Fab Kills . | . . . Hacking | -11 -10 -9 --------- Run | Yrd Mat Mat Machines Accessed 5 | . 3 2 Terminals 5 | . 3 2 Fabricators . | . . . Repair Stations . | . . . Recycling Units . | . . . Scanalyzers . | . . . Garrison Access . | . . . Total Hacks 15 | . 9 6 Successful 11 | . 5 6 Failed 4 | . 4 . Catastrophic 1 | . 1 . Database Lockouts . | . . . Manual . | . . . Terminals 15 | . 9 6 Fabricators . | . . . Repair Stations . | . . . Recycling Units . | . . . Scanalyzers . | . . . Garrison Access . | . . . Terminal Hacks 11 | . 5 6 Record 2 | . . 2 Prototype ID Bank 1 | . 1 . Level Access Points 1 | . . 1 Alert Level 2 | . 1 1 Locate Traps 1 | . 1 . Maintenance Status 1 | . 1 . Hauler Manifests 2 | . 1 1 Zone Layout 1 | . . 1 Fabricator Hacks . | . . . Repair Station Hacks . | . . . Recycling Unit Hacks . | . . . Scanalyzer . | . . . Garrison Access Hacks . | . . . Unauthorized Hacks . | . . . Terminals . | . . . Fabricators . | . . . Repair Stations . | . . . Recycling Units . | . . . Scanalyzers . | . . . Garrison Access . | . . . Data Cores Recovered . | . . . Used . | . . . Hacking Detections 3 | . 3 . Full Trace Events 1 | . 1 . Feedback Events . | . . . Feedback Blocked . | . . . Robot Schematics Acquired . | . . . Robots Built . | . . . Authchips . | . . . Time . | . . . Total Robot Build Rating . | . . . Part Schematics Acquired . | . . . Parts Built . | . . . Authchips . | . . . Time . | . . . Total Part Build Rating . | . . . Parts Repaired . | . . . Time . | . . . Parts Recycled . | . . . Recycled Matter . | . . . Retrieved Matter . | . . . Retrieved Components . | . . . Parts Scanalyzed . | . . . Part Schematics Acquired . | . . . Parts Damaged . | . . . Bothacking | -11 -10 -9 ------------ Run | Yrd Mat Mat Used RIF Installer . | . . . Robots Hacked . | . . . Non-combat . | . . . Combat . | . . . Robot Hacks Applied . | . . . Relay Couplers Released . | . . . Fabnet Peak Effective % . | . . . Robots Rewired . | . . . Allies Hacked . | . . . Hacks Repelled . | . . . Allies | -11 -10 -9 -------- Run | Yrd Mat Mat Total Allies . | . . . Largest Group . | . . . Highest-Rated Group . | . . . Highest-Rated Ally . | . . . Total Orders . | . . . Ally Attacks . | . . . Total Damage . | . . . Kills . | . . . Allies Corrupted . | . . . Allies Melted . | . . . Intel | -11 -10 -9 ------- Run | Yrd Mat Mat Robot Analysis Total . | . . . Derelict Logs Recovered . | . . . Drone Launches . | . . . Drone Recoveries . | . . . Exploration | -11 -10 -9 ------------- Run | Yrd Mat Mat Turns Passed 850 | 73 250 527 Spaces Moved 476 | 57 127 292 Core 13 | 13 . . Treads . | . . . Legs 463 | 44 127 292 Wheels . | . . . Hover . | . . . Flight . | . . . Fastest Speed 50 | 50 120 120 Average Speed 118 | 104 120 120 Slowest Speed 120 | 120 120 120 Overloaded Moves . | . . . Propulsion Burnouts . | . . . Robots Hopped . | . . . Cave-ins Triggered . | . . . Exploration Rate (%) 23 | 3 38 30 Regions Visited 2 Branch Regions . Pre-discovered Areas . | . . . Known Exits Taken . | . . . Unknown Exits Taken 2 | 1 1 . Scrap Searched . | . . . Spaces Dug . | . . . Terrain Destroyed . | . . . Melee . | . . . Projectile . | . . . AOE . | . . . Terrain Rammed . | . . . Walls Destroyed . | . . . Machines Disabled . | . . . Actions | -11 -10 -9 --------- Run | Yrd Mat Mat Total 625 | 71 174 380 Wait 24 | . 8 16 Move 474 | 56 126 292 Hop . | . . . Pick Up 28 | 10 7 11 Fast Attach 1 | 1 . . Attach 9 | 2 4 3 Detach . | . . . Swap 13 | . 2 11 Drop 6 | 2 1 3 Fire 70 | . 26 44 Melee . | . . . Ram . | . . . Kick . | . . . Crush . | . . . Escape Stasis . | . . . Rewire . | . . . Trap . | . . . Miscellaneous . | . . . Route ------- -11/Scrapyard -10/Materials -9/Materials (discovered 3 exits: Mat x3) History --------- Turn | Location | Event 9 | -11/Scrapyard | Discovered new exit (range 16) 74 | -11/Scrapyard | Entered Materials 201 | -10/Materials | Discovered new exit (range 16) 306 | -10/Materials | Build established: Mutant 324 | -10/Materials | Entered another Materials area 324 | -9/Materials | Evolved 2 slots: Propulsion x2 416 | -9/Materials | Identified exit to Materials 612 | -9/Materials | Build established: Scavenger-Mutant 851 | -9/Materials | Self-destructed Last Messages --------------- Rifle. 00813_ G-34 Mercenary destroyed. 00813_ R-06 Scavenger collects Aluminum Leg. 00813_ K-01 Serf collects debris. 00819_ G-47 Trooper suffers critical hit (Burn). 00821_ K-01 Serf collects debris. 00823_ Assault Rifle destroyed. 00824_ K-01 Serf collects debris. 00825_ G-47 Trooper suffers critical hit (Burn). 00825_ G-47 Trooper overheating. 00826_ G-47 Trooper heat spikes uncontrollably. 00826_ G-47 Trooper overheating. 00827_ G-47 Trooper heat spikes uncontrollably. 00827_ G-47 Trooper overheating. 00828_ G-47 Trooper critical meltdown. 00828_ Aluminum Leg melted. 00828_ Lgt. Nuclear Core melted. 00828_ Imp. Heat Sink melted. 00831_ R-06 Scavenger collects Aluminum Leg. 00835_ Acquired 56 matter. Map ----- +----------------------------------------------------+ | ???????????????????????????????????????????####### | | ????????????????????????????????????????????###### | | ????????????????????????????????????????????# | | ????????????????????????????????????????????# | | ????????????????????????????????????????????# | | ????????????????????????????????????????????# | | ????????????????????????????????????????????###### | | ???????????????????????????????????????????????# | | ???????????????????????????????????????????????# | | ???????????? ????????????????########????????# | | ???????????# #???????????????# = #????????# | | ???????????# #???????????????# T #????????# | | ???????????# #???????????????# #????????# % | | ???????????# #???????????????# #????????##+ | | ???????????# #??????#+???????# [ ########### | | ??????????## ##?????# #??????# # ## | | ##???????# #?##### ##########+#### "" ## | | ?????? ??? k + = ""S ## | | ????? T ???? ########+#### "" # | | ????? ?????? # #??# + | | ^ ???? % ???????# # #??# """ # | | ####+#####???# # #??# """ ### | | +% % ##### # #??# """ #?? | | ??## ##### + + #??# #?? | | ?????????# ##### # #??##########?? | | ?????????# !#???###@# #?????????????? | | ?????????# #?????# # #?????????????? | | ?????????# #?????#g# #?????????????? | | ?????????# #?????# ##########?????????????? | | ?????????# #?????#g#??????????????????????? | | ?????????# #?????# #??????????????????????? | | ?????????##########?????# #??????????????????????? | | ????????????????????????# #??????????????????????? | | ????????????????????????o +??????????????????????? | | ???????????????????????? #???????????????????????? | | ???????????????????????? ????????????????????????? | | ???????????????????????? ????????????????????????? | | ???????????????????????? ????????????????????????? | | ???????????????????????? ????????????????????????? | | ???????????????????????? ????????????????????????? | | ???????????????????????? ???????????????????????